bitfinex-derivatives/quotes_ETHF0:USTF0_20241231
["timestamp","ask_amount","ask_price","bid_price","bid_amount"]
[1735671733383,0.0220821,3361.2,3361.1,1.18309]
[1735671733876,0.3199621,3361.2,3361.1,1.18309]
[1735671734377,0.3199621,3361.2,3361.1,0.8852]
[1735671734378,0.0220821,3361.2,3361.1,0.8852]
[1735671734572,0.3199621,3361.2,3361.1,0.8852]
[1735671734778,0.67852227,3361.2,3361.1,0.8852]
[1735671735276,0.03754692,3361.2,3360.9,0.2979]
[1735671735471,0.33542692,3361.2,3361.0,0.29789]
[1735671735670,0.03754692,3361.1,3361.0,0.29789]
[1735671737775,0.33543692,3361.1,3360.9,0.2979]
[1735671737980,0.03754692,3361.1,3361.0,0.2979]
[1735671738476,0.03754692,3361.1,3360.7,0.4259]
[1735671738672,4.99988819,3361.4,3360.7,0.4259]
[1735671738881,0.03754692,3360.9,3360.8,0.29792]
[1735671739474,0.03754692,3360.9,3360.7,0.4259]
[1735671739779,0.33546692,3360.8,3360.7,0.4259]
[1735671740167,0.38031403,3360.8,3360.7,0.72382]
[1735671740473,0.03754692,3360.8,3360.7,0.72382]
[1735671741383,0.03754692,3360.8,3360.7,1.15432]
[1735671742273,0.33546692,3360.8,3360.7,1.15432]
[1735671742583,0.33546692,3360.8,3360.7,0.8564]
[1735671742880,2.12755511,3360.8,3360.7,0.8564]
[1735671743178,2.17195591,3360.8,3360.2,3.2078]
[1735671743482,0.29795,3360.4,3360.3,0.4456]
[1735671743781,0.33549692,3360.4,3360.3,0.4456]
[1735671744284,0.67757653,3360.4,3360.3,0.4456]
[1735671745682,0.37952139,3360.4,3360.0,0.29798]
[1735671745876,0.29798,3360.1,3360.0,0.29798]
[1735671746175,5.03743511,3360.2,3359.8,0.4551]
[1735671746377,0.298,3359.9,3359.8,0.7531]
[1735671746582,2.09008819,3359.9,3359.8,0.7531]
[1735671747083,2.12763511,3359.9,3359.8,0.4551]
[1735671747470,2.46958781,3359.9,3359.8,0.4551]
[1735671747677,0.29801,3359.7,3359.6,0.4291]
[1735671747879,3.54335692,3359.7,3359.6,0.4291]
[1735671748180,0.29802,3359.6,3359.5,0.29803]
[1735671748783,2.09010819,3359.6,3359.5,0.29803]
[1735671749081,2.12765511,3359.6,3359.5,0.29803]
[1735671749274,1.82963511,3359.6,3359.3,0.4592]
[1735671749477,0.29804,3359.4,3359.3,0.75724]
[1735671749877,0.29804,3359.4,3359.3,0.75725]
[1735671750077,0.03754692,3359.4,3359.3,0.75725]
[1735671751180,3.2078,3359.7,3359.3,0.75725]
[1735671751507,3.21397,3360.3,3360.2,0.29797]
[1735671751678,3.55564106,3360.3,3360.2,0.29797]
[1735671751878,2.916,3360.3,3360.2,0.29797]
[1735671752485,3.2078,3360.5,3360.4,0.29795]
[1735671752787,0.29792,3360.8,3360.7,0.29792]
[1735671753086,0.29794,3360.6,3360.5,0.29793]
[1735671753481,0.63991114,3360.6,3360.5,0.29793]
[1735671753876,0.64001479,3360.6,3360.5,0.29793]
[1735671754585,0.64030567,3360.6,3360.5,0.29793]
[1735671757393,0.34236567,3360.6,3360.5,0.29793]
[1735671757693,0.34324193,3360.6,3360.5,0.29794]
[1735671757884,0.64117193,3360.6,3360.5,0.29794]
[1735671758484,2.13533012,3360.6,3360.2,0.8702]
[1735671758692,0.29798,3360.1,3360.0,0.4602]
[1735671759189,0.64122193,3360.1,3360.0,0.4602]
[1735671760190,0.34324193,3360.1,3359.7,1.16781]
[1735671760395,0.298,3359.8,3359.7,0.8698]
[1735671760598,0.64151088,3359.8,3359.7,0.8698]
[1735671760787,0.64151088,3359.8,3359.7,0.4443]
[1735671760984,0.34351088,3359.8,3359.5,0.4563]
[1735671761190,2.09010819,3359.6,3359.5,0.4563]
[1735671761390,2.43359704,3359.6,3359.5,0.4563]
[1735671761592,0.29803,3359.5,3359.4,0.8684]
[1735671761889,0.34348885,3359.5,3359.3,3.2078]
[1735671762093,3.55128885,3359.4,3358.8,1.3247]
[1735671762395,0.29808,3358.9,3358.8,1.62278]
[1735671762902,0.64146254,3358.9,3358.8,1.62278]
[1735671763288,0.34338254,3358.9,3358.8,1.62278]
[1735671763592,0.29806,3359.2,3359.0,0.29807]
[1735671763781,0.34334622,3359.1,3359.0,0.29807]
[1735671764382,0.64141622,3359.1,3359.0,0.29807]
[1735671765494,0.64141622,3359.1,3358.9,0.29808]
[1735671765689,0.34334622,3359.0,3358.9,0.29808]
[1735671766593,0.34332012,3359.0,3358.8,1.3247]
[1735671766790,0.34332201,3358.9,3358.8,1.62279]
[1735671766990,0.29803,3359.6,3359.4,0.29803]
[1735671767390,0.29803,3359.6,3359.5,0.4638]
[1735671767592,0.29803,3359.6,3359.5,0.76183]
[1735671767793,0.29803,3359.6,3359.5,0.4638]
[1735671767993,1.79208819,3359.7,3359.4,0.29804]
[1735671768195,0.29803,3359.5,3359.4,0.29804]
[1735671769496,0.29803,3359.6,3359.5,0.29802]
[1735671771497,3.2078,3359.8,3359.7,0.29801]
[1735671772607,3.5058,3359.8,3359.7,0.29801]
[1735671774490,0.298,3359.9,3359.8,0.298]
[1735671774894,0.29801,3359.8,3359.7,0.29801]
[1735671775093,0.29801,3359.8,3359.1,3.95297]
[1735671775094,3.2078,3359.8,3359.1,3.2078]
[1735671775300,0.29806,3359.3,3359.2,0.29805]
[1735671775604,1.79208819,3359.4,3358.9,0.74521]
[1735671775814,3.50581,3359.8,3359.7,0.29801]
[1735671776103,5.29789819,3359.8,3359.7,0.29801]
[1735671777103,5.63737184,3359.8,3359.7,0.29801]
[1735671777401,3.84528365,3359.8,3359.7,0.29801]
[1735671778100,5.33936184,3359.8,3359.4,0.425]
[1735671778296,1.79208819,3359.5,3359.4,0.425]
[1735671778497,2.42959184,3359.5,3359.4,0.72303]
[1735671778700,2.42959184,3359.5,3359.4,0.425]
[1735671778900,2.42970825,3359.5,3359.4,0.72304]
[1735671779097,2.76929709,3359.5,3359.4,0.72304]
[1735671779496,0.97720307,3359.5,3359.4,0.72304]
[1735671779696,2.76929126,3359.5,3359.4,0.72304]
[1735671780501,2.76929126,3359.5,3359.4,0.425]
[1735671780703,2.76929126,3359.5,3359.4,0.72304]
[1735671780901,2.76729156,3359.5,3359.4,0.72304]
[1735671781301,2.42770855,3359.5,3359.4,0.425]
[1735671781604,0.29811,3358.7,3358.0,10.31632212]
[1735671781801,3.2078,3358.9,3358.3,0.8693]
[1735671781997,0.29813,3358.4,3358.3,7.86401013]
[1735671782804,0.29813,3358.4,3358.3,8.16215013]
[1735671783302,0.29813,3358.4,3358.3,1.16744]
[1735671783502,4.99988819,3358.5,3357.8,0.4409]
[1735671783696,2.09024819,3358.0,3357.9,0.29817]
[1735671783902,2.09024819,3358.0,3357.8,0.4409]
[1735671783903,0.29817,3357.9,3357.8,0.4409]
[1735671784106,0.29819,3357.7,3357.6,0.8795]
[1735671784308,0.2982,3357.6,3357.5,0.2982]
[1735671784806,0.2982,3357.6,3357.3,0.4538]
[1735671784807,4.99988819,3357.7,3357.3,0.4538]
[1735671784999,4.99988819,3357.7,3357.4,0.29822]
[1735671785000,0.29821,3357.6,3357.4,0.29822]
[1735671785201,4.99988819,3357.7,3357.3,0.4538]
[1735671785399,2.09030819,3357.4,3357.3,0.4538]
[1735671785604,1.79208819,3357.4,3357.3,0.75203]
[1735671786598,4.99988819,3357.7,3357.6,0.2982]
[1735671786900,2.31600256,3358.1,3358.0,0.29816]
[1735671787606,2.31600256,3358.1,3358.0,3.50596]
[1735671787803,2.31600256,3358.1,3358.0,0.29816]
[1735671788005,2.31600256,3358.1,3358.0,3.50596]
[1735671788216,1.79208819,3358.7,3358.6,0.29811]
[1735671788611,2.31600256,3359.1,3358.4,3.2078]
[1735671788912,2.09016819,3359.0,3358.8,0.29809]
[1735671789408,0.2981,3358.8,3358.6,0.29811]
[1735671789713,0.29813,3358.4,3357.8,0.29818]
[1735671790009,1.79208819,3358.4,3358.1,0.29815]
[1735671790205,7.34431272,3358.3,3358.2,0.29814]
[1735671790512,0.29813,3358.5,3357.7,1.97548]
[1735671790715,0.29813,3358.4,3358.2,0.29814]
[1735671791010,0.33887148,3358.3,3358.2,0.29814]
[1735671791210,0.33887148,3358.3,3357.7,1.97548]
[1735671791411,0.33882261,3358.2,3358.1,0.29815]
[1735671791609,0.29814,3358.3,3358.1,0.29815]
[1735671791911,0.29814,3358.3,3357.7,1.97548]
[1735671791912,0.29814,3358.3,3358.2,0.4317]
[1735671792306,0.63699424,3358.3,3358.2,0.4317]
[1735671793009,0.63695816,3358.3,3358.2,0.4317]
[1735671794404,0.33881816,3358.3,3358.2,0.72985]
[1735671794613,0.2981,3358.8,3358.2,0.4317]
[1735671794807,3.50587,3359.1,3358.4,3.2078]
[1735671795111,2.31600256,3359.3,3358.6,0.74528]
[1735671795316,0.33874486,3359.2,3359.1,0.29806]
[1735671795506,2.31600256,3359.3,3359.2,0.29806]
[1735671795712,2.31600256,3359.3,3359.2,3.50586]
[1735671795909,2.31600256,3359.3,3359.2,0.29806]
[1735671796118,2.31600256,3359.3,3359.2,3.50586]
[1735671796716,3.7768788,3359.5,3359.2,3.50586]
[1735671796717,0.29803,3359.5,3359.3,0.29804]
[1735671797108,0.29806,3359.2,3359.1,0.4386]
[1735671799314,0.63695355,3359.2,3359.1,0.4386]
[1735671799509,3.2078,3359.6,3359.1,0.4386]
[1735671799718,0.63693507,3359.5,3359.3,0.29805]
[1735671800019,0.33889507,3359.4,3359.3,0.29805]
[1735671800419,0.63694507,3359.4,3359.2,0.29805]
[1735671800620,3.2078,3359.6,3359.2,0.29805]
[1735671800913,0.29805,3359.4,3359.2,0.29805]
[1735671801120,3.2078,3359.6,3359.1,0.4386]
[1735671801326,0.33878805,3359.5,3359.1,0.4386]
[1735671801525,0.63682805,3359.4,3359.2,0.29805]
[1735671801828,0.29804,3359.4,3359.2,0.29805]
[1735671802033,3.2078,3359.6,3359.1,0.73667]
[1735671802220,0.33873363,3359.5,3359.1,0.73667]
[1735671802420,0.63677363,3359.4,3359.2,0.29805]
[1735671802615,0.29804,3359.4,3359.2,0.29805]
[1735671803226,0.3388813,3359.3,3359.2,0.29805]
[1735671803525,0.6369313,3359.3,3359.2,0.29805]
[1735671803725,0.3388813,3359.3,3359.2,0.29805]
[1735671804128,0.6369313,3359.3,3359.2,0.29805]
[1735671804321,0.6369313,3359.3,3359.1,0.4386]
[1735671804322,0.29806,3359.2,3359.1,0.4386]
[1735671804522,0.6369413,3359.2,3359.1,0.4386]
[1735671805039,0.33898769,3359.2,3359.1,0.4386]
[1735671805227,0.63704769,3359.2,3359.1,0.4386]
[1735671806427,0.29807,3359.1,3358.8,3.2078]
[1735671806728,0.33898769,3359.0,3358.9,0.29808]
[1735671807122,0.63705769,3359.0,3358.9,0.29808]
[1735671807324,0.63705769,3359.0,3358.4,7.87080813]
[1735671807325,3.40369325,3359.0,3358.4,4.66300813]
[1735671807529,0.29812,3358.5,3358.4,4.66300813]
[1735671807732,0.63710769,3358.5,3358.4,4.66300813]
[1735671808434,0.63710769,3358.5,3358.2,7.29285013]
[1735671808435,0.29814,3358.4,3358.2,0.29814]
[1735671808726,0.33898435,3358.3,3358.2,0.29814]
[1735671808934,0.29815,3358.2,3358.1,0.8724]
[1735671809128,0.63713435,3358.2,3358.1,0.8724]
[1735671809728,0.63713435,3358.2,3358.1,1.17055]
[1735671810135,0.63713435,3358.2,3358.1,0.8724]
[1735671810433,0.33905949,3358.2,3358.1,1.17055]
[1735671810639,0.63720949,3358.2,3358.1,1.17055]
[1735671811339,0.63720949,3358.2,3358.1,0.8724]
[1735671811633,0.63720949,3358.2,3358.1,1.17055]
[1735671814338,0.33938233,3358.2,3358.1,1.17055]
[1735671814632,0.33943607,3358.2,3358.1,0.8724]
[1735671814838,0.29813,3358.4,3358.3,0.29814]
[1735671815137,0.63755457,3358.4,3358.3,0.29814]
[1735671816726,0.33942457,3358.4,3358.3,0.29814]
[1735671817337,2.31600256,3359.1,3359.0,0.29807]
[1735671817533,2.65576049,3359.1,3359.0,0.29807]
[1735671817761,2.61407256,3359.1,3359.0,0.29807]
[1735671817935,0.29808,3359.0,3358.9,0.29808]
[1735671818133,0.63785077,3359.0,3358.9,0.29808]
[1735671818333,0.29808,3358.9,3358.8,1.62059]
[1735671818542,0.63785077,3358.9,3358.8,1.62059]
[1735671819040,0.2981,3358.7,3358.6,1.229]
[1735671819335,0.29812,3358.5,3358.4,4.66300813]
[1735671819536,0.33977077,3358.6,3358.4,4.66300813]
[1735671819832,0.33977077,3358.5,3358.4,4.96113813]
[1735671820037,3.2078,3358.9,3358.8,0.29809]
[1735671820242,0.29805,3359.3,3359.2,0.29805]
[1735671820442,2.31600256,3359.3,3359.2,0.29805]
[1735671821128,2.61405256,3359.3,3359.2,0.29805]
[1735671821331,2.61405256,3359.3,3359.2,0.29806]
[1735671821732,0.29806,3359.2,3359.1,0.29806]
[1735671821938,0.29805,3359.3,3359.2,0.29805]
[1735671822138,0.29806,3359.2,3359.1,0.29806]
[1735671822440,0.29806,3359.3,3359.2,0.29805]
[1735671823335,0.29807,3359.1,3359.0,0.29807]
[1735671823539,0.29806,3359.2,3359.1,0.29806]
[1735671824044,1.80152416,3359.2,3358.9,0.4305]
[1735671824342,0.29807,3359.1,3359.0,0.29807]
[1735671824537,0.29805,3359.3,3359.1,0.29807]
[1735671824743,0.29805,3359.3,3359.2,0.29806]
[1735671827244,0.29804,3359.4,3359.3,0.29804]
[1735671830145,0.29806,3359.3,3359.2,0.29805]
[1735671831244,0.29805,3359.4,3359.3,0.29804]
[1735671831646,7.78392672,3359.8,3359.0,3.2078]
[1735671831844,8.08193672,3359.8,3359.7,0.29801]
[1735671832044,2.31600256,3359.8,3359.7,0.29801]
[1735671832245,2.83725136,3359.9,3359.5,5.00932416]
[1735671832466,2.13845136,3359.9,3359.8,2.09952416]
[1735671832748,4.65172687,3360.1,3360.0,0.29799]
[1735671832950,4.65172687,3360.1,3360.0,8.50579]
[1735671833453,4.65172687,3360.1,3360.0,3.50579]
[1735671833751,10.23995619,3360.9,3360.7,0.29792]
[1735671833752,2.09943416,3360.9,3360.7,0.29792]
[1735671833945,1.80152416,3360.9,3360.8,0.29792]
[1735671834146,1.80152416,3360.9,3360.4,3.2078]
[1735671834452,4.65172687,3361.3,3361.2,0.29788]
[1735671834948,0.75586,3361.5,3361.3,0.29787]
[1735671835256,0.75586,3361.5,3360.8,3.2078]
[1735671835257,0.458,3361.5,3361.4,0.29786]
[1735671835554,0.75586,3361.5,3361.3,0.29786]
[1735671835750,0.458,3361.5,3361.4,0.29786]
[1735671836643,0.75585,3361.5,3361.4,0.29786]
[1735671836848,0.458,3361.5,3361.4,0.29786]
[1735671838144,0.75585,3361.5,3361.4,0.29786]
[1735671838546,0.75585,3361.5,3361.0,0.426]
[1735671838747,0.75585,3361.5,3361.4,0.29786]
[1735671838955,0.29788,3361.3,3361.1,0.29788]
[1735671839156,2.25952416,3361.5,3360.9,1.229]
[1735671839351,0.29786,3361.4,3361.2,0.29787]
[1735671839754,2.25952416,3361.5,3360.9,1.229]
[1735671840054,0.29786,3361.4,3361.2,0.29787]
[1735671840249,0.29786,3361.4,3361.3,0.29787]
[1735671840648,0.29788,3361.2,3360.9,0.29791]
[1735671840848,0.29788,3361.2,3361.1,0.29788]
[1735671841152,0.29788,3361.2,3360.8,3.2078]
[1735671841153,0.29787,3361.3,3360.9,0.29791]
[1735671841353,0.29787,3361.3,3361.2,0.29788]
[1735671841650,0.29787,3361.3,3360.8,3.2078]
[1735671841651,2.25952416,3361.5,3360.9,0.74477]
[1735671841849,2.25952416,3361.5,3361.4,0.29786]
[1735671841850,0.458,3361.5,3361.4,0.29786]
[1735671843054,0.4418,3362.0,3361.9,0.29782]
[1735671843248,0.4448,3362.0,3361.9,0.29782]
[1735671844048,2.09930416,3362.4,3362.3,0.29778]
[1735671844252,1.80152416,3362.4,3361.3,1.228]
[1735671844451,0.29786,3361.5,3361.3,0.29787]
[1735671844652,1.16426,3361.4,3361.3,0.29787]
[1735671845053,1.16426,3361.4,3361.2,0.29787]
[1735671845252,0.8664,3361.4,3360.8,3.6697]
[1735671845450,0.8664,3361.4,3360.6,4.67145079]
[1735671845451,1.80152416,3360.9,3360.6,4.67145079]
[1735671845668,0.29792,3360.7,3360.6,4.67145079]
[1735671846052,0.29792,3360.7,3360.4,0.29795]
[1735671846247,2.31676203,3360.5,3359.8,4.67145079]
[1735671846471,0.298,3359.9,3359.8,4.67145079]
[1735671846848,3.50579,3360.0,3359.8,4.96945079]
[1735671847249,0.298,3359.9,3359.8,4.67145079]
[1735671847445,0.298,3359.9,3359.7,6.99471013]
[1735671847446,0.298,3359.9,3359.7,0.29801]
[1735671847651,0.421,3359.8,3359.7,0.29801]
[1735671848356,3.50576,3360.4,3359.5,1.04309]
[1735671848654,3.50576,3360.4,3359.4,3.2078]
[1735671848655,3.6288,3360.4,3359.6,0.74506]
[1735671848852,3.92675,3360.4,3360.2,0.29796]
[1735671849156,0.421,3360.4,3360.3,0.29796]
[1735671849656,0.4388,3360.7,3360.0,0.74497]
[1735671849968,0.29796,3360.3,3360.1,0.29797]
[1735671850161,1.15773,3360.7,3360.5,0.29794]
[1735671850656,0.74469,3361.3,3359.8,3.2078]
[1735671850657,3.2078,3361.2,3360.6,1.228]
[1735671850855,0.29789,3361.1,3360.9,0.2979]
[1735671851049,3.6655,3361.2,3361.1,0.29789]
[1735671853251,3.6655,3361.2,3360.7,3.2078]
[1735671853457,0.29789,3361.1,3360.9,0.2979]
[1735671853653,0.29789,3361.1,3360.8,0.29791]
[1735671853848,3.6655,3361.2,3360.7,3.2078]
[1735671854048,0.2979,3361.0,3360.9,0.2979]
[1735671854447,0.29789,3361.1,3360.9,0.2979]
[1735671854853,0.29789,3361.1,3360.6,1.227]
[1735671855152,0.4577,3361.2,3361.1,0.29789]
[1735671855961,0.75559,3361.2,3361.0,0.29789]
[1735671856259,0.4577,3361.2,3361.1,0.29789]
[1735671857158,0.4577,3361.2,3360.7,3.2078]
[1735671857359,0.75558,3361.2,3360.6,1.227]
[1735671857754,0.4577,3361.2,3360.6,1.227]
[1735671857961,0.75559,3361.2,3361.0,0.29789]
[1735671858463,0.75559,3361.2,3361.1,0.29789]
[1735671858856,0.4577,3361.2,3361.1,0.29789]
[1735671859257,0.75558,3361.2,3360.7,3.2078]
[1735671859565,0.75558,3361.2,3361.1,0.29789]
[1735671859967,0.4577,3361.2,3361.1,0.29789]
[1735671862568,0.4577,3361.2,3361.0,0.2979]
[1735671862569,0.29789,3361.1,3361.0,0.2979]
[1735671862770,0.75558,3361.2,3361.1,0.29789]
[1735671863161,0.4577,3361.2,3361.1,0.29789]
[1735671864567,3.2078,3361.6,3361.5,0.29785]
[1735671864873,3.2078,3362.2,3362.0,0.29781]
[1735671865664,3.5056,3362.2,3362.0,0.29781]
[1735671865866,3.2078,3362.2,3362.0,0.29781]
[1735671866066,3.2078,3362.2,3361.5,3.95242]
[1735671866067,0.29784,3361.7,3361.5,3.2078]
[1735671866268,0.29783,3361.8,3361.7,0.29783]
[1735671866474,0.29782,3361.9,3361.8,0.29782]
[1735671866768,0.29784,3361.7,3361.6,0.29784]
[1735671867775,0.4273,3362.1,3361.4,0.74465]
[1735671867970,0.29781,3362.0,3361.5,0.29785]
[1735671868270,0.29782,3361.9,3361.8,0.29782]
[1735671868676,0.29782,3362.0,3361.9,0.29782]
[1735671869079,0.4273,3362.1,3361.4,0.74465]
[1735671869276,0.4273,3362.1,3361.3,1.227]
[1735671869469,3.2078,3361.8,3361.0,7.87925079]
[1735671869777,0.29789,3361.1,3361.0,8.17714079]
[1735671869976,0.29789,3361.1,3361.0,4.67145079]
[1735671870175,0.29789,3361.1,3360.9,0.29791]
[1735671870374,0.29789,3361.2,3361.1,0.29788]
[1735671871279,0.2979,3361.1,3360.9,0.29791]
[1735671871573,0.29788,3361.2,3361.1,0.29788]
[1735671871780,0.73297,3361.3,3361.2,0.29788]
[1735671872367,0.4351,3361.3,3361.2,0.29788]
[1735671872569,0.4201,3361.7,3360.8,3.2078]
[1735671872870,3.2078,3361.8,3361.7,0.29784]
[1735671873070,0.29784,3361.7,3361.6,0.29784]
[1735671873468,0.4279,3361.9,3361.2,4.4348]
[1735671873780,0.29784,3361.7,3361.6,0.29784]
[1735671874871,0.29785,3361.6,3361.5,0.29785]
[1735671875273,0.29786,3361.4,3361.3,0.29787]
[1735671875473,0.29786,3361.5,3361.4,0.29786]
[1735671875676,0.29785,3361.6,3361.5,0.29785]
[1735671875977,0.29788,3361.2,3361.1,0.29788]
[1735671876178,8.12590474,3361.7,3361.0,4.67145079]
[1735671876380,0.29787,3361.3,3361.2,0.29787]
[1735671876599,0.29789,3361.2,3361.1,0.29789]
[1735671878074,0.74462,3361.6,3360.9,1.227]
[1735671878277,0.2979,3361.0,3360.9,4.67145079]
[1735671879472,0.2979,3361.0,3360.8,0.29791]
[1735671879678,0.4643,3361.3,3360.5,4.67145079]
[1735671879880,0.29791,3360.9,3360.8,0.29791]
[1735671880479,0.29791,3360.9,3360.5,4.67145079]
[1735671880681,0.29791,3360.9,3360.8,0.29792]
[1735671880878,0.29791,3360.9,3360.7,0.29792]
[1735671881075,0.4643,3361.3,3360.5,4.67145079]
[1735671881275,3.2078,3361.0,3360.5,4.67145079]
[1735671881483,0.29793,3360.7,3360.6,0.29793]
[1735671881781,0.29793,3360.6,3360.5,4.96938079]
[1735671881971,0.29793,3360.7,3360.6,0.29793]
[1735671882573,0.29792,3360.8,3360.7,0.29792]
[1735671882779,3.2078,3361.0,3360.9,0.29791]
[1735671883278,3.5057,3361.0,3360.9,0.29791]
[1735671883478,0.29791,3360.9,3360.8,0.29791]
[1735671883881,3.5057,3361.0,3360.8,0.29791]
[1735671884181,0.2979,3361.0,3360.8,0.29791]
[1735671885381,0.4209,3361.1,3360.7,4.67145079]
[1735671885784,0.2979,3361.0,3360.9,0.29791]
[1735671885971,0.4209,3361.1,3360.9,0.29791]
[1735671886179,0.29789,3361.1,3361.0,0.2979]
[1735671886677,0.4643,3361.3,3360.7,4.67145079]
[1735671887080,0.4643,3361.3,3360.6,6.99471013]
[1735671887383,0.29791,3360.9,3360.8,0.29791]
[1735671887577,0.29792,3360.7,3360.6,6.99471013]
[1735671887882,13.10335866,3360.7,3360.6,5.35360942]
[1735671888078,18.10335866,3360.7,3360.6,0.62867905]
[1735671888383,0.29793,3360.6,3360.5,6.73688415]
[1735671888582,0.29793,3360.6,3359.6,3.96892]
[1735671888583,15.49011808,3360.7,3360.2,4.67627246]
[1735671888781,3.50576,3360.3,3360.2,4.67627246]
[1735671888975,3.84985308,3360.3,3360.2,4.67627246]
[1735671889196,11.3742065,3360.3,3360.2,4.67627246]
[1735671889584,11.0762465,3360.3,3360.0,0.29798]
[1735671889879,0.29798,3360.1,3360.0,0.29798]
[1735671890180,0.34409308,3360.1,3359.7,0.2903]
[1735671890387,0.298,3359.9,3359.8,0.298]
[1735671890581,0.64209308,3359.9,3359.8,0.298]
[1735671890780,0.34409308,3359.9,3359.8,0.298]
[1735671891782,0.3435503,3359.9,3359.7,0.2903]
[1735671892085,3.50576,3360.3,3360.2,0.29797]
[1735671892281,3.84934002,3360.3,3360.2,0.29797]
[1735671892686,3.84925037,3360.3,3360.2,0.29797]
[1735671893380,3.55129037,3360.3,3359.7,0.2903]
[1735671893580,3.55129037,3360.3,3360.1,0.29797]
[1735671893581,0.64147037,3360.2,3360.1,0.29797]
[1735671893981,0.34349037,3360.2,3359.7,0.2903]
[1735671894179,0.34349037,3360.1,3359.7,0.2903]
[1735671894375,0.29798,3360.1,3360.0,0.29799]
[1735671894787,0.64125984,3360.1,3360.0,0.29799]
[1735671894987,0.6412416,3360.1,3360.0,0.29799]
[1735671895882,0.3432616,3360.1,3360.0,0.29799]
[1735671897484,0.29799,3360.0,3359.9,0.29799]
[1735671897686,0.6412516,3360.0,3359.9,0.29799]
[1735671897896,0.29798,3360.1,3360.0,0.29799]
[1735671898393,0.641341,3360.1,3360.0,0.29799]
[1735671900380,0.29799,3360.0,3359.9,0.29799]
[1735671900574,0.641351,3360.0,3359.9,0.298]
[1735671900800,0.641351,3360.0,3359.7,0.2903]
[1735671900801,1.79949567,3360.0,3359.7,0.2903]
[1735671900980,0.64147208,3359.9,3359.8,0.298]
[1735671901182,0.34347208,3359.9,3359.8,0.298]
[1735671901481,0.29797,3360.2,3360.1,0.29798]
[1735671901678,0.64139988,3360.2,3360.1,0.29798]
[1735671906486,0.298,3359.9,3359.8,0.29799]
[1735671907178,0.34386386,3359.9,3359.8,0.29799]
[1735671907881,0.64186386,3359.9,3359.8,0.29799]
[1735671908986,0.298,3359.8,3359.7,0.2903]
[1735671909186,0.64193484,3359.8,3359.7,0.2903]
[1735671910093,0.29797,3360.2,3360.1,0.29797]
[1735671910283,0.29799,3360.1,3360.0,0.29798]
[1735671910592,0.298,3359.8,3359.7,0.58831]
[1735671911288,0.298,3359.8,3359.7,0.2903]
[1735671913688,0.29803,3359.5,3359.4,0.72163]
[1735671915788,0.29803,3359.5,3359.4,0.4236]
[1735671917284,0.29806,3359.2,3359.1,0.4236]
[1735671918200,0.29806,3359.2,3359.1,0.72167]
[1735671919182,0.29806,3359.2,3359.1,0.4236]
[1735671919891,0.29806,3359.2,3359.1,0.72167]
[1735671920890,3.2078,3359.8,3359.1,10.43089567]
[1735671921204,3.2078,3359.8,3359.7,2.09750567]
[1735671921388,1.8104,3359.8,3359.7,3.32450567]
[1735671921789,3.49867012,3360.0,3359.9,0.298]
[1735671922895,6.11261859,3360.3,3360.2,0.29797]
[1735671922896,0.29796,3360.3,3360.2,0.29797]
[1735671923499,0.3446,3360.7,3360.0,3.2078]
[1735671923700,0.29793,3360.7,3360.6,0.29792]
[1735671924497,3.49867012,3360.9,3360.5,3.2078]
[1735671924707,3.49867012,3360.9,3360.8,0.29792]
[1735671925295,9.02245859,3361.3,3360.6,0.4626]
[1735671925296,3.2078,3361.3,3360.6,0.4626]
[1735671925496,3.50568,3361.3,3361.2,0.29788]
[1735671928803,3.2078,3361.3,3361.2,0.29788]
[1735671929192,3.50567,3361.3,3361.2,0.29788]
[1735671930296,3.2078,3361.3,3360.8,0.4389]
[1735671930500,0.29791,3360.9,3360.8,0.4389]
[1735671931000,0.29791,3360.9,3360.8,0.73682]
[1735671931304,0.29791,3360.9,3360.8,0.4389]
[1735671931505,0.29792,3360.8,3360.7,0.29792]
[1735671932093,0.4632,3361.1,3360.6,0.4626]
[1735671932094,0.29792,3360.7,3360.6,0.4626]
[1735671932294,0.29793,3360.6,3360.5,0.4655]
[1735671932510,0.29796,3360.3,3360.2,5.12727246]
[1735671933206,0.29796,3360.3,3360.2,4.67627246]
[1735671933413,0.29799,3360.0,3359.9,0.4655]
[1735671933604,0.29799,3360.0,3359.9,0.7635]
[1735671935406,0.29798,3360.1,3360.0,0.29798]
[1735671935606,3.49867012,3360.6,3359.9,0.4655]
[1735671935807,3.49867012,3360.6,3360.5,0.29794]
[1735671936416,4.65172687,3360.8,3360.5,3.02549567]
[1735671936713,4.65172687,3360.8,3360.7,0.29792]
[1735671937615,0.29789,3361.1,3361.0,0.2979]
[1735671937914,0.29788,3361.2,3361.1,0.29788]
[1735671938510,3.2078,3361.4,3360.7,3.95262]
[1735671938717,3.2078,3361.4,3361.3,0.29787]
[1735671939018,0.435,3361.9,3361.2,4.4338]
[1735671939313,0.435,3361.9,3361.8,0.29783]
[1735671939706,0.73282,3361.9,3361.8,0.29783]
[1735671940518,0.435,3361.9,3361.4,0.8791]
[1735671940713,0.29783,3361.8,3361.7,0.29783]
[1735671941116,0.435,3361.9,3361.4,0.8791]
[1735671941314,2.23449567,3361.9,3361.4,0.8791]
[1735671941512,0.435,3361.9,3361.4,0.8791]
[1735671941715,0.29783,3361.8,3361.7,0.29783]
[1735671941908,0.29783,3361.8,3361.4,0.8791]
[1735671941909,0.29781,3362.0,3361.8,0.29783]
[1735671942118,0.7552,3362.2,3362.1,0.2978]
[1735671942427,0.29782,3361.9,3361.8,0.29782]
[1735671942612,0.4574,3362.2,3361.4,0.8791]
[1735671942613,0.4574,3362.2,3361.4,1.62375]
[1735671942814,0.4574,3362.2,3362.1,0.2978]
[1735671943032,0.29779,3362.3,3362.2,0.29778]